[Event "*** SCC Grand Prix: Titled Tuesday Blitz"]
[Site "Chess.com"]
[Date "2020.06.02"]
[Round "4"]
[White "gui_borba"]
[Black "dosto07"]
[Result "1-0"]
[WhiteElo "2311"]
[BlackElo "2108"]
[TimeControl "180+1"]
[EndTime "10:39:28 PDT"]
[Termination "gui_borba won on time"]

1. d4 {[%clk 0:03:00.9]} 1... d5 {[%clk 0:02:59.3]} 2. Bf4 {[%clk 0:03:01.4]}
2... Nf6 {[%clk 0:02:58.5]} 3. e3 {[%clk 0:03:01.8]} 3... c5 {[%clk 0:02:57.8]}
4. c3 {[%clk 0:03:01.9]} 4... Nc6 {[%clk 0:02:57.1]} 5. Nd2 {[%clk 0:03:00.4]}
5... Qb6 {[%clk 0:02:54.6]} 6. Qb3 {[%clk 0:02:58.7]} 6... c4 {[%clk 0:02:48.9]}
7. Qxb6 {[%clk 0:02:56.7]} 7... axb6 {[%clk 0:02:49]} 8. a3 {[%clk 0:02:57.3]}
8... b5 {[%clk 0:02:44.1]} 9. Rc1 {[%clk 0:02:57.6]} 9... Bf5 {[%clk 0:02:41.7]}
10. Ngf3 {[%clk 0:02:57.9]} 10... e6 {[%clk 0:02:41.8]} 11. Ne5 {[%clk
0:02:57.4]} 11... Be7 {[%clk 0:02:37.2]} 12. f3 {[%clk 0:02:55.6]} 12... h6
{[%clk 0:02:37.1]} 13. g4 {[%clk 0:02:53.8]} 13... Bh7 {[%clk 0:02:34.3]} 14. h4
{[%clk 0:02:54]} 14... Nxe5 {[%clk 0:02:30.2]} 15. Bxe5 {[%clk 0:02:52.6]} 15...
O-O {[%clk 0:02:25.7]} 16. Be2 {[%clk 0:02:45.6]} 16... Nd7 {[%clk 0:02:24.8]}
17. Bf4 {[%clk 0:02:43.8]} 17... Nb6 {[%clk 0:02:23.6]} 18. Bd1 {[%clk
0:02:37.6]} 18... Bd3 {[%clk 0:02:13.6]} 19. g5 {[%clk 0:02:28]} 19... h5 {[%clk
0:02:06.8]} 20. Nf1 {[%clk 0:02:21.5]} 20... Na4 {[%clk 0:01:41.1]} 21. Bxa4
{[%clk 0:02:20.2]} 21... bxa4 {[%clk 0:01:40.7]} 22. Ng3 {[%clk 0:02:21.1]}
22... g6 {[%clk 0:01:28.6]} 23. Be5 {[%clk 0:02:20.4]} 23... f6 {[%clk
0:01:26.3]} 24. gxf6 {[%clk 0:02:18]} 24... Bxf6 {[%clk 0:01:26.2]} 25. Bxf6
{[%clk 0:02:10.5]} 25... Rxf6 {[%clk 0:01:25.7]} 26. f4 {[%clk 0:02:11]} 26...
Ra6 {[%clk 0:01:20]} 27. Rd1 {[%clk 0:01:59.3]} 27... Rb6 {[%clk 0:01:15.6]} 28.
Rd2 {[%clk 0:01:59.7]} 28... Bf5 {[%clk 0:01:05.1]} 29. Rg1 {[%clk 0:01:58.9]}
29... Bg4 {[%clk 0:01:04.3]} 30. Nf1 {[%clk 0:01:55.8]} 30... Kg7 {[%clk
0:00:57.9]} 31. Nh2 {[%clk 0:01:55.8]} 31... Bf5 {[%clk 0:00:57.6]} 32. Nf3
{[%clk 0:01:53.3]} 32... Rf8 {[%clk 0:00:53.8]} 33. Ne5 {[%clk 0:01:50.6]} 33...
Rd6 {[%clk 0:00:43.1]} 34. Kd1 {[%clk 0:01:40.9]} 34... Rf6 {[%clk 0:00:41]} 35.
Kc1 {[%clk 0:01:40.8]} 35... Rd8 {[%clk 0:00:37.6]} 36. Rdg2 {[%clk 0:01:40.8]}
36... Rd6 {[%clk 0:00:34.3]} 37. Rg5 {[%clk 0:01:40.8]} 37... Kh7 {[%clk
0:00:30.7]} 38. Nf3 {[%clk 0:01:25.9]} 38... Rd8 {[%clk 0:00:28.1]} 39. Nd2
{[%clk 0:01:25.7]} 39... Rg8 {[%clk 0:00:20.4]} 40. Nf1 {[%clk 0:01:25.1]} 40...
Bg4 {[%clk 0:00:17.3]} 41. Ng3 {[%clk 0:01:24.5]} 41... Rg7 {[%clk 0:00:14.1]}
42. Re5 {[%clk 0:01:23.9]} 42... Rff7 {[%clk 0:00:11.4]} 43. Nf1 {[%clk
0:01:16.4]} 43... Bf5 {[%clk 0:00:10.3]} 44. Nh2 {[%clk 0:01:16.5]} 44... Kg8
{[%clk 0:00:08.7]} 45. Nf3 {[%clk 0:01:16.5]} 45... Kf8 {[%clk 0:00:08.5]} 46.
Ng5 {[%clk 0:01:13.4]} 46... Rf6 {[%clk 0:00:07.2]} 47. Re1 {[%clk 0:01:03.9]}
47... Ke7 {[%clk 0:00:06.1]} 48. e4 {[%clk 0:00:58.2]} 48... dxe4 {[%clk
0:00:04.4]} 49. Nxe4 {[%clk 0:00:59.1]} 49... Bxe4 {[%clk 0:00:03.9]} 50. R1xe4
{[%clk 0:01:00]} 1-0

[Event "*** SCC Grand Prix: Titled Tuesday Blitz"]
[Site "Chess.com"]
[Date "2020.06.02"]
[Round "4"]
[White "Funkmaus"]
[Black "PauloFanha"]
[Result "0-1"]
[WhiteElo "2188"]
[BlackElo "1962"]
[TimeControl "180+1"]
[EndTime "10:39:28 PDT"]
[Termination "PauloFanha won by resignation"]

1. d4 {[%clk 0:03:00.9]} 1... d5 {[%clk 0:02:58.4]} 2. Nf3 {[%clk 0:03:00.9]}
2... c6 {[%clk 0:02:55.2]} 3. c4 {[%clk 0:02:58.2]} 3... e6 {[%clk 0:02:53.6]}
4. cxd5 {[%clk 0:02:59.1]} 4... exd5 {[%clk 0:02:52.7]} 5. Nc3 {[%clk 0:03:00]}
5... Bf5 {[%clk 0:02:50.2]} 6. Bf4 {[%clk 0:02:59.9]} 6... Bd6 {[%clk
0:02:48.3]} 7. Bg3 {[%clk 0:02:57.5]} 7... Nf6 {[%clk 0:02:44.6]} 8. e3 {[%clk
0:02:57.1]} 8... O-O {[%clk 0:02:41.6]} 9. Bd3 {[%clk 0:02:57.3]} 9... Bxd3
{[%clk 0:02:38.2]} 10. Qxd3 {[%clk 0:02:58.2]} 10... Re8 {[%clk 0:02:35.8]} 11.
a3 {[%clk 0:02:57.8]} 11... Ne4 {[%clk 0:02:21.1]} 12. Nd2 {[%clk 0:02:49.2]}
12... Nxc3 {[%clk 0:02:14]} 13. Qxc3 {[%clk 0:02:41.6]} 13... Qe7 {[%clk
0:02:06.3]} 14. b4 {[%clk 0:02:36.3]} 14... Nd7 {[%clk 0:02:02.7]} 15. Bxd6
{[%clk 0:02:36.2]} 15... Qxd6 {[%clk 0:02:01.1]} 16. O-O {[%clk 0:02:36.7]}
16... Re6 {[%clk 0:01:56.2]} 17. a4 {[%clk 0:02:26.5]} 17... Rh6 {[%clk
0:01:54.3]} 18. Nf3 {[%clk 0:02:24.2]} 18... Nf6 {[%clk 0:01:47.6]} 19. b5
{[%clk 0:01:54.5]} 19... Ne4 {[%clk 0:01:42]} 20. Qa3 {[%clk 0:01:53]} 20... Qc7
{[%clk 0:01:33.5]} 21. h3 {[%clk 0:01:26.9]} 21... Re8 {[%clk 0:01:25]} 22. Rac1
{[%clk 0:01:24.7]} 22... Qd8 {[%clk 0:01:22.1]} 23. bxc6 {[%clk 0:01:22.3]}
23... bxc6 {[%clk 0:01:20]} 24. a5 {[%clk 0:01:18.1]} 24... Ng5 {[%clk
0:01:17.5]} 25. Nh2 {[%clk 0:00:51.5]} 25... Qd7 {[%clk 0:00:53.5]} 26. f4
{[%clk 0:00:19.6]} 26... Nxh3+ {[%clk 0:00:43.4]} 27. gxh3 {[%clk 0:00:20.5]}
27... Qxh3 {[%clk 0:00:42.2]} 28. Rc2 {[%clk 0:00:17.1]} 28... Rxe3 {[%clk
0:00:28.4]} 29. Rf3 {[%clk 0:00:14.4]} 29... Re1+ {[%clk 0:00:20.3]} 30. Kf2
{[%clk 0:00:12.7]} 30... Qxh2+ {[%clk 0:00:19.3]} 31. Kxe1 {[%clk 0:00:13]}
31... Qxc2 {[%clk 0:00:18.8]} 32. Rf1 {[%clk 0:00:11.1]} 32... Rh2 {[%clk
0:00:16.9]} 33. Qe3 {[%clk 0:00:10.5]} 33... Qb1+ {[%clk 0:00:15.5]} 0-1

[Event "*** SCC Grand Prix: Titled Tuesday Blitz"]
[Site "Chess.com"]
[Date "2020.06.02"]
[Round "4"]
[White "Zurability"]
[Black "Vaathi_Coming"]
[Result "0-1"]
[WhiteElo "2714"]
[BlackElo "2875"]
[TimeControl "180+1"]
[EndTime "10:39:29 PDT"]
[Termination "Vaathi_Coming won by resignation"]

1. Nf3 {[%clk 0:03:00.9]} 1... d5 {[%clk 0:02:59.5]} 2. g3 {[%clk 0:03:00.5]}
2... Nf6 {[%clk 0:02:59]} 3. Bg2 {[%clk 0:03:00.9]} 3... Nc6 {[%clk 0:02:57.9]}
4. d4 {[%clk 0:02:55.3]} 4... Bf5 {[%clk 0:02:56.9]} 5. O-O {[%clk 0:02:50.7]}
5... e6 {[%clk 0:02:56.5]} 6. c4 {[%clk 0:02:51]} 6... Be7 {[%clk 0:02:53.4]} 7.
b3 {[%clk 0:02:39.2]} 7... O-O {[%clk 0:02:51.3]} 8. Nc3 {[%clk 0:02:38.2]} 8...
Ne4 {[%clk 0:02:47.7]} 9. Bb2 {[%clk 0:02:37.3]} 9... Bf6 {[%clk 0:02:38.8]} 10.
e3 {[%clk 0:02:35.2]} 10... Re8 {[%clk 0:02:33]} 11. Rc1 {[%clk 0:02:28.4]}
11... Qd7 {[%clk 0:02:16.8]} 12. Nd2 {[%clk 0:02:11.1]} 12... Nxc3 {[%clk
0:02:16.1]} 13. Bxc3 {[%clk 0:02:10.7]} 13... Rad8 {[%clk 0:02:16.1]} 14. f4
{[%clk 0:01:53.9]} 14... h6 {[%clk 0:02:09.6]} 15. Qe2 {[%clk 0:01:45]} 15...
Ne7 {[%clk 0:01:50.8]} 16. b4 {[%clk 0:01:39]} 16... c6 {[%clk 0:01:48.3]} 17.
a4 {[%clk 0:01:34.3]} 17... Bh7 {[%clk 0:01:45.2]} 18. b5 {[%clk 0:01:28.2]}
18... c5 {[%clk 0:01:28.8]} 19. Nb3 {[%clk 0:01:05.1]} 19... cxd4 {[%clk
0:01:15.2]} 20. Bxd4 {[%clk 0:01:02.2]} 20... Bxd4 {[%clk 0:01:12.1]} 21. Nxd4
{[%clk 0:01:03.1]} 21... dxc4 {[%clk 0:01:03.3]} 22. Rxc4 {[%clk 0:00:55.4]}
22... Nd5 {[%clk 0:00:47.5]} 23. Rfc1 {[%clk 0:00:52.4]} 23... e5 {[%clk
0:00:44.5]} 24. fxe5 {[%clk 0:00:22.1]} 24... Rxe5 {[%clk 0:00:45.4]} 25. Nb3
{[%clk 0:00:18]} 25... Rxe3 {[%clk 0:00:35.6]} 26. Qd2 {[%clk 0:00:16.8]} 26...
Rd3 {[%clk 0:00:27.1]} 27. Qb2 {[%clk 0:00:16.8]} 27... Ne3 {[%clk 0:00:26.4]}
28. Nc5 {[%clk 0:00:17.2]} 28... Rd1+ {[%clk 0:00:23.6]} 29. Kf2 {[%clk
0:00:13.5]} 29... Rd2+ {[%clk 0:00:19.6]} 30. Kg1 {[%clk 0:00:10.4]} 30... Rxb2
{[%clk 0:00:18.6]} 31. Nxd7 {[%clk 0:00:10.3]} 31... Rxg2+ {[%clk 0:00:18.2]}
32. Kh1 {[%clk 0:00:10.9]} 32... Nxc4 {[%clk 0:00:15.9]} 33. Rxc4 {[%clk
0:00:10.5]} 33... Rd2 {[%clk 0:00:14.3]} 0-1

[Event "*** SCC Grand Prix: Titled Tuesday Blitz"]
[Site "Chess.com"]
[Date "2020.06.02"]
[Round "4"]
[White "Ellaijio_B"]
[Black "GHANDEEVAM2003"]
[Result "0-1"]
[WhiteElo "2637"]
[BlackElo "2951"]
[TimeControl "180+1"]
[EndTime "10:39:29 PDT"]
[Termination "GHANDEEVAM2003 won by resignation"]

1. e4 {[%clk 0:03:00.9]} 1... c5 {[%clk 0:02:56.1]} 2. Nf3 {[%clk 0:02:54.6]}
2... e6 {[%clk 0:02:56.5]} 3. d4 {[%clk 0:02:54.8]} 3... cxd4 {[%clk 0:02:56.9]}
4. Nxd4 {[%clk 0:02:55.4]} 4... Nc6 {[%clk 0:02:57.6]} 5. Nc3 {[%clk 0:02:55.4]}
5... Qc7 {[%clk 0:02:56.2]} 6. f4 {[%clk 0:02:55.9]} 6... a6 {[%clk 0:02:52.3]}
7. Be3 {[%clk 0:02:55.9]} 7... b5 {[%clk 0:02:50.7]} 8. Bd3 {[%clk 0:02:56.1]}
8... Bb7 {[%clk 0:02:50.1]} 9. Qe2 {[%clk 0:02:55.6]} 9... Nxd4 {[%clk
0:02:40.8]} 10. Bxd4 {[%clk 0:02:56.5]} 10... Qxf4 {[%clk 0:02:41.4]} 11. Rf1
{[%clk 0:02:56]} 11... Qxh2 {[%clk 0:02:22.3]} 12. O-O-O {[%clk 0:02:54.9]}
12... Nf6 {[%clk 0:02:17.9]} 13. Qf2 {[%clk 0:02:08]} 13... Bd6 {[%clk
0:01:35.4]} 14. Ne2 {[%clk 0:01:40]} 14... Be5 {[%clk 0:01:16.5]} 15. Bc5 {[%clk
0:01:26.5]} 15... Qh5 {[%clk 0:01:02.6]} 16. Rh1 {[%clk 0:01:03.3]} 16... Qg5+
{[%clk 0:01:01]} 17. Be3 {[%clk 0:01:01.3]} 17... Ng4 {[%clk 0:00:57]} 18. Bxg5
{[%clk 0:00:58.2]} 18... Nxf2 {[%clk 0:00:56.7]} 19. Rh5 {[%clk 0:00:47.4]}
19... Nxd1 {[%clk 0:00:50.6]} 20. Kxd1 {[%clk 0:00:48.3]} 20... Bxb2 {[%clk
0:00:48.8]} 21. c3 {[%clk 0:00:31.3]} 21... Ba3 {[%clk 0:00:49.1]} 22. Rh3
{[%clk 0:00:21.2]} 22... Be7 {[%clk 0:00:48.7]} 23. Be3 {[%clk 0:00:20]} 23...
d6 {[%clk 0:00:46.3]} 24. Kd2 {[%clk 0:00:19.2]} 24... Kd7 {[%clk 0:00:45.9]}
25. Rh1 {[%clk 0:00:16.7]} 25... h6 {[%clk 0:00:44.4]} 26. Rb1 {[%clk
0:00:17.1]} 26... Bc6 {[%clk 0:00:44.1]} 27. Nd4 {[%clk 0:00:16.6]} 27... Rhc8
{[%clk 0:00:44]} 28. Nb3 {[%clk 0:00:15.5]} 28... Bf6 {[%clk 0:00:43.5]} 29. Bd4
{[%clk 0:00:15.2]} 29... Bxd4 {[%clk 0:00:42.7]} 30. cxd4 {[%clk 0:00:16.1]}
30... Ke7 {[%clk 0:00:42.7]} 31. Na5 {[%clk 0:00:15.3]} 31... Bd7 {[%clk
0:00:42.8]} 32. g3 {[%clk 0:00:06.6]} 32... h5 {[%clk 0:00:42.7]} 33. Rh1 {[%clk
0:00:06.4]} 33... Rh8 {[%clk 0:00:42.7]} 34. Rf1 {[%clk 0:00:07.1]} 34... h4
{[%clk 0:00:42.3]} 35. gxh4 {[%clk 0:00:07.1]} 35... Rxh4 {[%clk 0:00:43.2]} 36.
d5 {[%clk 0:00:07.3]} 36... Rah8 {[%clk 0:00:41.6]} 37. Rc1 {[%clk 0:00:06.7]}
37... Rh2+ {[%clk 0:00:41.4]} 38. Ke3 {[%clk 0:00:06.4]} 38... R8h3+ {[%clk
0:00:41.3]} 39. Kf4 {[%clk 0:00:06.7]} 39... e5+ {[%clk 0:00:42.2]} 0-1

[Event "*** SCC Grand Prix: Titled Tuesday Blitz"]
[Site "Chess.com"]
[Date "2020.06.02"]
[Round "4"]
[White "AlanZhang"]
[Black "tamarozi99"]
[Result "0-1"]
[WhiteElo "2216"]
[BlackElo "2027"]
[TimeControl "180+1"]
[EndTime "10:39:29 PDT"]
[Termination "tamarozi99 won on time"]

1. e4 {[%clk 0:03:00.9]} 1... c5 {[%clk 0:02:58.9]} 2. Nf3 {[%clk 0:03:00.5]}
2... Nc6 {[%clk 0:02:58.3]} 3. d4 {[%clk 0:03:01]} 3... cxd4 {[%clk 0:02:58.6]}
4. Nxd4 {[%clk 0:03:01.9]} 4... g6 {[%clk 0:02:59]} 5. c4 {[%clk 0:03:00.8]}
5... d6 {[%clk 0:02:58.2]} 6. Nc3 {[%clk 0:03:00.1]} 6... Nf6 {[%clk 0:02:57.9]}
7. Be2 {[%clk 0:02:58]} 7... Nxd4 {[%clk 0:02:57.9]} 8. Qxd4 {[%clk 0:02:54.7]}
8... Bg7 {[%clk 0:02:58.8]} 9. Be3 {[%clk 0:02:54.7]} 9... O-O {[%clk 0:02:58]}
10. Qd2 {[%clk 0:02:55.2]} 10... a5 {[%clk 0:02:57.6]} 11. O-O {[%clk
0:02:54.8]} 11... a4 {[%clk 0:02:56.7]} 12. Rfc1 {[%clk 0:02:53]} 12... Be6
{[%clk 0:02:42.3]} 13. Rab1 {[%clk 0:02:51.4]} 13... Qa5 {[%clk 0:02:40.2]} 14.
b4 {[%clk 0:02:41.9]} 14... axb3 {[%clk 0:02:37.6]} 15. axb3 {[%clk 0:02:42.8]}
15... Qb4 {[%clk 0:02:21.9]} 16. Nd5 {[%clk 0:02:07.6]} 16... Qxd2 {[%clk
0:02:15.7]} 17. Nxe7+ {[%clk 0:02:01.9]} 17... Kh8 {[%clk 0:02:15.6]} 18. Bxd2
{[%clk 0:02:01.9]} 18... Rfe8 {[%clk 0:02:15.5]} 19. Nd5 {[%clk 0:01:42.6]}
19... Bxd5 {[%clk 0:01:44.6]} 20. cxd5 {[%clk 0:01:39.1]} 20... Nxe4 {[%clk
0:01:42.7]} 21. Be1 {[%clk 0:01:16.3]} 21... Ra2 {[%clk 0:01:17.4]} 22. Bb5
{[%clk 0:01:12.7]} 22... Rea8 {[%clk 0:01:02.1]} 23. Rc7 {[%clk 0:01:05.3]}
23... Bd4 {[%clk 0:00:26.9]} 24. Rxf7 {[%clk 0:00:58.3]} 24... Ra1 {[%clk
0:00:25.5]} 25. Bd3 {[%clk 0:00:21]} 25... Rxb1 {[%clk 0:00:25]} 26. Bxb1 {[%clk
0:00:20.8]} 26... Ra1 {[%clk 0:00:25]} 27. Kf1 {[%clk 0:00:10.6]} 27... Rxb1
{[%clk 0:00:22.1]} 28. Rf4 {[%clk 0:00:10.2]} 28... Nd2+ {[%clk 0:00:09.9]} 29.
Ke2 {[%clk 0:00:09.6]} 29... Nxb3 {[%clk 0:00:10.1]} 0-1

[Event "*** SCC Grand Prix: Titled Tuesday Blitz"]
[Site "Chess.com"]
[Date "2020.06.02"]
[Round "4"]
[White "Oleksandr_Bortnyk"]
[Black "BogdanBelyakov89"]
[Result "1-0"]
[WhiteElo "2960"]
[BlackElo "2655"]
[TimeControl "180+1"]
[EndTime "10:39:32 PDT"]
[Termination "Oleksandr_Bortnyk won by checkmate"]

1. e4 {[%clk 0:03:00.9]} 1... e5 {[%clk 0:02:59.6]} 2. Bc4 {[%clk 0:02:59.4]}
2... Nc6 {[%clk 0:02:59.2]} 3. d3 {[%clk 0:02:56.4]} 3... Nf6 {[%clk 0:02:57.1]}
4. Nc3 {[%clk 0:02:56]} 4... Na5 {[%clk 0:02:56.8]} 5. Bb3 {[%clk 0:02:56.3]}
5... Nxb3 {[%clk 0:02:53.6]} 6. axb3 {[%clk 0:02:57.2]} 6... d5 {[%clk
0:02:52.7]} 7. Bg5 {[%clk 0:02:53.5]} 7... Bb4 {[%clk 0:02:41.7]} 8. Bxf6 {[%clk
0:02:22.7]} 8... gxf6 {[%clk 0:02:30.3]} 9. exd5 {[%clk 0:02:23.6]} 9... Qxd5
{[%clk 0:02:26.5]} 10. Qf3 {[%clk 0:02:23.5]} 10... Be6 {[%clk 0:02:20]} 11.
O-O-O {[%clk 0:02:11.3]} 11... Qxf3 {[%clk 0:02:16]} 12. Nxf3 {[%clk 0:02:11.2]}
12... Bxc3 {[%clk 0:02:05]} 13. bxc3 {[%clk 0:02:09.1]} 13... Bg4 {[%clk
0:02:05.5]} 14. Rde1 {[%clk 0:01:55.3]} 14... Bxf3 {[%clk 0:02:05.2]} 15. gxf3
{[%clk 0:01:56.2]} 15... Kd7 {[%clk 0:02:01.5]} 16. f4 {[%clk 0:01:57.1]} 16...
Kd6 {[%clk 0:01:55.4]} 17. Re4 {[%clk 0:01:54.4]} 17... Rhg8 {[%clk 0:01:43.8]}
18. Rhe1 {[%clk 0:01:53.7]} 18... Rg2 {[%clk 0:01:34.3]} 19. fxe5+ {[%clk
0:01:51.3]} 19... fxe5 {[%clk 0:01:35.2]} 20. Rxe5 {[%clk 0:01:52.2]} 20... Rxf2
{[%clk 0:01:32.4]} 21. Rh5 {[%clk 0:01:51.6]} 21... Rg8 {[%clk 0:01:28.9]} 22.
Kb2 {[%clk 0:00:48.2]} 22... Rgg2 {[%clk 0:01:27.8]} 23. b4 {[%clk 0:00:46.1]}
23... Rxc2+ {[%clk 0:01:18.7]} 24. Kb3 {[%clk 0:00:46.4]} 24... Rxh2 {[%clk
0:01:17.4]} 25. Rhe5 {[%clk 0:00:40.9]} 25... c6 {[%clk 0:01:08.2]} 26. c4
{[%clk 0:00:33.3]} 26... Rb2+ {[%clk 0:00:57.1]} 27. Kc3 {[%clk 0:00:33]} 27...
Rhc2+ {[%clk 0:00:55.8]} 28. Kd4 {[%clk 0:00:33.1]} 28... Rxb4 {[%clk
0:00:53.2]} 29. Rf1 {[%clk 0:00:30.4]} 29... b5 {[%clk 0:00:35]} 30. Rf6+ {[%clk
0:00:20.3]} 30... Kc7 {[%clk 0:00:34.9]} 31. Rxf7+ {[%clk 0:00:16.6]} 31... Kb6
{[%clk 0:00:34.5]} 32. Ree7 {[%clk 0:00:17.5]} 32... a6 {[%clk 0:00:31]} 33.
Rb7+ {[%clk 0:00:11.4]} 33... Ka5 {[%clk 0:00:31]} 34. Kc5 {[%clk 0:00:12.3]}
34... Ra4 {[%clk 0:00:14.4]} 35. Kxc6 {[%clk 0:00:11.8]} 35... bxc4 {[%clk
0:00:13.6]} 36. Rf5# {[%clk 0:00:11.5]} 1-0

[Event "*** SCC Grand Prix: Titled Tuesday Blitz"]
[Site "Chess.com"]
[Date "2020.06.02"]
[Round "4"]
[White "Alohamora11"]
[Black "annamaja"]
[Result "1-0"]
[WhiteElo "2410"]
[BlackElo "2186"]
[TimeControl "180+1"]
[EndTime "10:39:32 PDT"]
[Termination "Alohamora11 won on time"]

1. e4 {[%clk 0:03:00.9]} 1... e6 {[%clk 0:02:58.2]} 2. Nf3 {[%clk 0:02:58.6]}
2... d5 {[%clk 0:02:58.3]} 3. Nc3 {[%clk 0:02:59.2]} 3... Nf6 {[%clk 0:02:50]}
4. e5 {[%clk 0:02:59.4]} 4... Nfd7 {[%clk 0:02:50.3]} 5. d4 {[%clk 0:03:00.3]}
5... c5 {[%clk 0:02:50.4]} 6. dxc5 {[%clk 0:03:01.2]} 6... Bxc5 {[%clk
0:02:46.9]} 7. Bd3 {[%clk 0:03:00.3]} 7... Nc6 {[%clk 0:02:46.1]} 8. Bf4 {[%clk
0:02:59.7]} 8... Qb6 {[%clk 0:02:38.4]} 9. O-O {[%clk 0:02:58.2]} 9... Qxb2
{[%clk 0:02:31.4]} 10. Nb5 {[%clk 0:02:21.3]} 10... Bb6 {[%clk 0:01:56.3]} 11.
Nd6+ {[%clk 0:02:00.4]} 11... Ke7 {[%clk 0:01:50.1]} 12. Rb1 {[%clk 0:01:56.9]}
12... Qa3 {[%clk 0:01:32.3]} 13. Re1 {[%clk 0:01:09.4]} 13... Qc5 {[%clk
0:01:15.8]} 14. Be3 {[%clk 0:00:40.8]} 14... d4 {[%clk 0:01:02.8]} 15. Rb5
{[%clk 0:00:40.8]} 15... Qa3 {[%clk 0:00:45.3]} 16. Bg5+ {[%clk 0:00:24.1]}
16... f6 {[%clk 0:00:34.8]} 17. exf6+ {[%clk 0:00:16.5]} 17... Kxd6 {[%clk
0:00:31.7]} 18. fxg7 {[%clk 0:00:16.8]} 18... Rg8 {[%clk 0:00:27.8]} 19. Qe2
{[%clk 0:00:14]} 19... Nc5 {[%clk 0:00:20.7]} 20. Bf4+ {[%clk 0:00:11.7]} 20...
Ke7 {[%clk 0:00:14.8]} 21. Ng5 {[%clk 0:00:10.2]} 21... Rxg7 {[%clk 0:00:10.8]}
22. Rxc5 {[%clk 0:00:10.5]} 22... Qxc5 {[%clk 0:00:10.2]} 23. Nxe6 {[%clk
0:00:11.2]} 23... Bxe6 {[%clk 0:00:02.7]} 24. Qxe6+ {[%clk 0:00:12.1]} 24... Kf8
{[%clk 0:00:03.2]} 25. Bd6+ {[%clk 0:00:11.8]} 25... Qxd6 {[%clk 0:00:01.7]} 26.
Qxd6+ {[%clk 0:00:12.7]} 26... Kg8 {[%clk 0:00:02.1]} 27. Re4 {[%clk 0:00:05.8]}
27... Rf8 {[%clk 0:00:02]} 28. Rh4 {[%clk 0:00:05.8]} 1-0

[Event "*** SCC Grand Prix: Titled Tuesday Blitz"]
[Site "Chess.com"]
[Date "2020.06.02"]
[Round "4"]
[White "LamaChampetre"]
[Black "Loiacono_Antonio"]
[Result "0-1"]
[WhiteElo "2186"]
[BlackElo "2417"]
[TimeControl "180+1"]
[EndTime "10:39:34 PDT"]
[Termination "Loiacono_Antonio won by resignation"]

1. d4 {[%clk 0:03:00.9]} 1... d5 {[%clk 0:02:59.8]} 2. c4 {[%clk 0:03:00.7]}
2... c6 {[%clk 0:03:00]} 3. Nf3 {[%clk 0:02:55.2]} 3... Nf6 {[%clk 0:03:00.2]}
4. e3 {[%clk 0:02:50.4]} 4... Bg4 {[%clk 0:02:59.2]} 5. Nc3 {[%clk 0:02:49.5]}
5... e6 {[%clk 0:02:58.9]} 6. Qb3 {[%clk 0:02:48.5]} 6... Qb6 {[%clk 0:02:59]}
7. Bd2 {[%clk 0:02:46.7]} 7... Nbd7 {[%clk 0:02:56.5]} 8. Be2 {[%clk 0:02:43.2]}
8... Be7 {[%clk 0:02:52.1]} 9. h3 {[%clk 0:02:20.5]} 9... Bh5 {[%clk 0:02:50.7]}
10. O-O-O {[%clk 0:02:12.1]} 10... Qxb3 {[%clk 0:02:47]} 11. axb3 {[%clk
0:02:08.4]} 11... O-O {[%clk 0:02:45.8]} 12. Bd3 {[%clk 0:01:56.4]} 12... Bg6
{[%clk 0:02:44.2]} 13. Bxg6 {[%clk 0:01:55.6]} 13... hxg6 {[%clk 0:02:45.1]} 14.
g4 {[%clk 0:01:55.9]} 14... Nb6 {[%clk 0:02:38.5]} 15. Ne5 {[%clk 0:01:53.1]}
15... dxc4 {[%clk 0:02:29.8]} 16. bxc4 {[%clk 0:01:52.5]} 16... c5 {[%clk
0:02:30]} 17. h4 {[%clk 0:01:39.6]} 17... Rfd8 {[%clk 0:02:26.7]} 18. h5 {[%clk
0:01:36.4]} 18... gxh5 {[%clk 0:02:24.8]} 19. gxh5 {[%clk 0:01:36.1]} 19... cxd4
{[%clk 0:02:21.7]} 20. exd4 {[%clk 0:01:28.7]} 20... Rxd4 {[%clk 0:02:22.6]} 21.
h6 {[%clk 0:01:28.4]} 21... g6 {[%clk 0:02:18.8]} 22. h7+ {[%clk 0:01:27.6]}
22... Nxh7 {[%clk 0:02:13.4]} 23. Nxf7 {[%clk 0:01:17.1]} 23... Nxc4 {[%clk
0:02:03.6]} 24. Nh6+ {[%clk 0:01:06.1]} 24... Kg7 {[%clk 0:02:02]} 25. Be3
{[%clk 0:00:23.9]} 25... Rxd1+ {[%clk 0:01:59.7]} 26. Nxd1 {[%clk 0:00:22.4]}
26... Nxe3 {[%clk 0:02:00.6]} 27. Nxe3 {[%clk 0:00:22.5]} 27... Nf6 {[%clk
0:01:56]} 28. Nhg4 {[%clk 0:00:20.3]} 28... Rh8 {[%clk 0:01:51]} 29. Rd1 {[%clk
0:00:18.1]} 29... Rd8 {[%clk 0:01:49.6]} 30. Rh1 {[%clk 0:00:16.9]} 30... Nxg4
{[%clk 0:01:47.6]} 31. Nxg4 {[%clk 0:00:17.8]} 31... Rd4 {[%clk 0:01:47.4]} 32.
Ne3 {[%clk 0:00:15.7]} 32... Bg5 {[%clk 0:01:47.2]} 33. Rh3 {[%clk 0:00:14.9]}
33... Re4 {[%clk 0:01:40]} 34. Kd2 {[%clk 0:00:13.1]} 34... Bxe3+ {[%clk
0:01:40.1]} 35. fxe3 {[%clk 0:00:13.2]} 35... Rb4 {[%clk 0:01:37.7]} 36. Kc3
{[%clk 0:00:11.5]} 36... Rb6 {[%clk 0:01:38.2]} 37. e4 {[%clk 0:00:09.3]} 37...
Kf6 {[%clk 0:01:37]} 38. Kd4 {[%clk 0:00:06.1]} 38... Rxb2 {[%clk 0:01:35.7]}
39. Rf3+ {[%clk 0:00:05.3]} 39... Kg7 {[%clk 0:01:34.4]} 40. Ke5 {[%clk
0:00:04.9]} 40... Rb6 {[%clk 0:01:34.2]} 41. Rd3 {[%clk 0:00:04.1]} 41... Kf7
{[%clk 0:01:24.6]} 42. Rd7+ {[%clk 0:00:03.8]} 42... Ke8 {[%clk 0:01:24.9]} 43.
Rh7 {[%clk 0:00:03.6]} 43... a5 {[%clk 0:01:25]} 44. Kf6 {[%clk 0:00:03.5]}
44... a4 {[%clk 0:01:22.7]} 45. Kxg6 {[%clk 0:00:03.4]} 45... a3 {[%clk
0:01:22.5]} 46. Rh1 {[%clk 0:00:02.9]} 46... a2 {[%clk 0:01:22.3]} 47. Ra1
{[%clk 0:00:03.4]} 47... Ra6 {[%clk 0:01:21.8]} 48. Kf6 {[%clk 0:00:04.3]} 48...
Kd7 {[%clk 0:01:22.1]} 49. Ke5 {[%clk 0:00:04.2]} 49... Ra4 {[%clk 0:01:21.4]}
50. Kf6 {[%clk 0:00:02.3]} 50... b5 {[%clk 0:01:20.5]} 51. Rd1+ {[%clk
0:00:03.2]} 51... Kc6 {[%clk 0:01:19]} 52. Kxe6 {[%clk 0:00:04.1]} 52... a1=Q
{[%clk 0:01:17.6]} 0-1